[Event "48th Indian U15-ch Girls 2023"]
[Site "Jalgaon"]
[Date "2023.12.29"]
[Round "4.8"]
[White "Arshiya Das"]
[Black "Samhita Pungavanam"]
[Result "1-0"]
[WhiteElo "1729"]
[BlackElo "1437"]
[PlyCount "43"]
[EventDate "2023.12.30"]
[EventType "swiss"]
[EventCountry "IND"]
[TimeControl "5400+30"]

1. g3 {[%emt 0:00:07]} d5 {[%emt 0:01:30]} 2. Bg2 {[%emt 0:00:06]} Nc6 {[%emt 0:00:38]} 3. Nf3 {[%emt 0:00:12]} e5 {[%emt 0:03:19]} 4. d3 {[%emt 0:00:10]} Nf6 {[%emt 0:03:35]} 5. O-O {[%emt 0:01:27]} Bf5 {[%emt 0:02:19]} 6. Bg5 {[%emt 0:10:31]} Be7 {[%emt 0:06:07]} 7. Nbd2 {[%emt 0:02:14]} h6 {[%emt 0:04:35]} 8. Bxf6 {[%emt 0:00:49]} Bxf6 {[%emt 0:05:29]} 9. e4 {[%emt 0:00:12]} dxe4 {[%emt 0:04:46]} 10. dxe4 {[%emt 0:00:48]} Bg4 {[%emt 0:03:41]} 11. c3 {[%emt 0:03:47]} Qd3 {[%emt 0:11:37]} 12. Re1 {[%emt 0:00:17]} O-O-O {[%emt 0:08:24]} 13. Qa4 {[%emt 0:04:31]} Qd6 {[%emt 0:07:52]} 14. b4 {[%emt 0:09:34]} Kb8 {[%emt 0:02:58]} 15. Nb3 {[%emt 0:02:25]} h5 {[%emt 0:02:55]} 16. h3 {[%emt 0:05:05]} Bxf3 {[%emt 0:04:34]} 17. Bxf3 {[%emt 0:00:04]} g5 {[%emt 0:00:23]} 18. Nc5 {[%emt 0:00:39]} Qd2 {[%emt 0:05:33]} 19. Qb5 {[%emt 0:04:03]} b6 {[%emt 0:10:04]} 20. Qxc6 {[%emt 0:00:07]} bxc5 {[%emt 0:00:18]} 21. bxc5 {[%emt 0:00:13]} Kc8 {[%emt 0:07:30]} 22. Qa6+ {[%emt 0:00:10]} 1-0

[Event "48th Indian U15-ch Girls 2023"]
[Site "Jalgaon"]
[Date "2023.12.29"]
[Round "4.9"]
[White "Drishtee Ghosh"]
[Black "Suravi Bhattacharya"]
[Result "1/2-1/2"]
[WhiteElo "1605"]
[BlackElo "1420"]
[PlyCount "118"]
[EventDate "2023.12.30"]
[EventType "swiss"]
[EventCountry "IND"]
[TimeControl "5400+30"]

1. e4 {[%emt 0:00:02]} e5 {[%emt 0:00:05]} 2. Bc4 {[%emt 0:00:03]} Nf6 {[%emt 0:00:06]} 3. Nc3 {[%emt 0:00:04]} Nxe4 {[%emt 0:00:09]} 4. Qh5 {[%emt 0:00:04]} Nd6 {[%emt 0:00:07]} 5. Bb3 {[%emt 0:00:02]} Be7 {[%emt 0:02:43]} 6. Nf3 {[%emt 0:00:06]} O-O {[%emt 0:01:14]} 7. h4 {[%emt 0:00:02]} Nc6 {[%emt 0:04:11]} 8. Ng5 {[%emt 0:01:24]} h6 {[%emt 0:02:09]} 9. Qg6 {[%emt 0:00:04]} Bxg5 {[%emt 0:01:00]} 10. hxg5 {[%emt 0:00:02]} Qxg5 {[%emt 0:02:57]} 11. Qxg5 {[%emt 0:00:28]} hxg5 {[%emt 0:00:07]} 12. d3 {[%emt 0:00:03]} Nd4 {[%emt 0:01:02]} 13. Bxg5 {[%emt 0:00:24]} Nxb3 {[%emt 0:00:07]} 14. Nd5 {[%emt 0:00:43]} f6 {[%emt 0:02:24]} 15. axb3 {[%emt 0:05:59]} fxg5 {[%emt 0:06:17]} 16. Nxc7 {[%emt 0:01:53]} Rb8 {[%emt 0:00:07]} 17. Rxa7 {[%emt 0:05:37]} b5 {[%emt 0:08:48]} 18. Nd5 {[%emt 0:04:13]} Bb7 {[%emt 0:04:41]} 19. Ne3 {[%emt 0:03:06]} Ra8 {[%emt 0:00:50]} 20. Rxa8 {[%emt 0:00:06]} Rxa8 {[%emt 0:00:01]} 21. Kd2 {[%emt 0:01:34]} Kf7 {[%emt 0:02:21]} 22. f3 {[%emt 0:00:55]} Kg6 {[%emt 0:01:01]} 23. Ng4 {[%emt 0:10:01]} Nf7 {[%emt 0:00:39]} 24. Re1 {[%emt 0:00:44]} d6 {[%emt 0:00:38]} 25. c4 {[%emt 0:01:10]} Kf5 {[%emt 0:14:02]} 26. Ne3+ {[%emt 0:01:51]} Ke6 {[%emt 0:00:18]} 27. Kc3 {[%emt 0:02:04]} Bc6 {[%emt 0:03:52]} 28. Nc2 {[%emt 0:01:31]} bxc4 {[%emt 0:01:26]} 29. bxc4 {[%emt 0:00:24]} d5 {[%emt 0:02:37]} 30. c5 {[%emt 0:05:05]} Kf5 {[%emt 0:05:15]} 31. d4 {[%emt 0:03:11]} Kf4 {[%emt 0:06:35]} 32. dxe5 {[%emt 0:00:48]} Nxe5 {[%emt 0:00:27]} 33. g3+ {[%emt 0:00:21]} Kf5 {[%emt 0:00:07]} 34. Nd4+ {[%emt 0:00:07]} Kf6 {[%emt 0:00:04]} 35. f4 {[%emt 0:01:47]} gxf4 {[%emt 0:00:07]} 36. gxf4 {[%emt 0:00:01]} Ng6 {[%emt 0:02:57]} 37. Re6+ {[%emt 0:00:31]} Kf7 {[%emt 0:00:02]} 38. f5 {[%emt 0:00:21]} Ne7 {[%emt 0:01:35]} 39. Nxc6 {[%emt 0:00:16]} Nxf5 {[%emt 0:00:21]} 40. Re5 {[%emt 0:00:07]} Kf6 {[%emt 0:06:43]} 41. Rxd5 {[%emt 0:00:19]} g5 {[%emt 0:00:50]} 42. Nd4 {[%emt 0:01:22]} Nxd4 {[%emt 0:03:27]} 43. Rxd4 {[%emt 0:00:05]} Ke5 {[%emt 0:00:04]} 44. Rd1 {[%emt 0:00:40]} g4 {[%emt 0:00:32]} 45. b4 {[%emt 0:00:04]} g3 {[%emt 0:01:24]} 46. b5 {[%emt 0:00:06]} g2 {[%emt 0:00:39]} 47. b6 {[%emt 0:00:27]} Rd8 {[%emt 0:00:45]} 48. Rg1 {[%emt 0:00:12]} Kd5 {[%emt 0:00:07]} 49. Kb4 {[%emt 0:00:09]} Rg8 {[%emt 0:01:25]} 50. Kb5 {[%emt 0:00:05]} Rg3 {[%emt 0:01:05]} 51. b7 {[%emt 0:02:33]} Rb3+ {[%emt 0:01:21]} 52. Ka6 {[%emt 0:00:13]} Kxc5 {[%emt 0:00:21]} 53. Ka7 {[%emt 0:00:46]} Ra3+ {[%emt 0:00:11]} 54. Kb8 {[%emt 0:00:02]} Rg3 {[%emt 0:00:13]} 55. Rc1+ {[%emt 0:00:34]} Kb6 {[%emt 0:00:39]} 56. Ka8 {[%emt 0:00:25]} Ra3+ {[%emt 0:00:40]} 57. Kb8 {[%emt 0:00:06]} Rf3 {[%emt 0:04:29]} 58. Rb1+ {[%emt 0:02:06]} Kc6 {[%emt 0:00:31]} 59. Rc1+ {[%emt 0:00:06]} Kb6 {[%emt 0:00:43]} 1/2-1/2

[Event "48th Indian U15-ch Girls 2023"]
[Site "Jalgaon"]
[Date "2023.12.29"]
[Round "4.10"]
[White "Modipalli Deekshitha"]
[Black "Kirthika B"]
[Result "1/2-1/2"]
[WhiteElo "1394"]
[BlackElo "1605"]
[PlyCount "73"]
[EventDate "2023.12.30"]
[EventType "swiss"]
[EventCountry "IND"]
[TimeControl "5400+30"]

1. d4 {[%emt 0:00:30]} Nf6 {[%emt 0:00:30]} 2. c4 {[%emt 0:00:30]} g6 {[%emt 0:00:30]} 3. Nc3 {[%emt 0:00:30]} Bg7 {[%emt 0:00:30]} 4. Nf3 {[%emt 0:00:30]} d6 {[%emt 0:00:30]} 5. Bg5 {[%emt 0:00:30]} h6 {[%emt 0:00:30]} 6. Bh4 {[%emt 0:00:30]} c5 {[%emt 0:00:30]} 7. d5 {[%emt 0:00:30]} Qa5 {[%emt 0:00:30]} 8. Nd2 {[%emt 0:00:30]} Bf5 {[%emt 0:00:30]} 9. f3 {[%emt 0:00:30]} g5 {[%emt 0:00:30]} 10. Bf2 {[%emt 0:00:30]} Nbd7 {[%emt 0:00:30]} 11. e4 {[%emt 0:00:30]} Bh7 {[%emt 0:00:30]} 12. Be2 {[%emt 0:00:30]} a6 {[%emt 0:00:30]} 13. h4 {[%emt 0:00:30]} g4 {[%emt 0:00:30]} 14. Be3 {[%emt 0:00:30]} gxf3 {[%emt 0:00:30]} 15. gxf3 {[%emt 0:00:30]} Nh5 {[%emt 0:00:30]} 16. Qc2 {[%emt 0:00:30]} Bd4 {[%emt 0:00:30]} 17. Nb3 {[%emt 0:00:30]} Bxc3+ {[%emt 0:00:30]} 18. bxc3 {[%emt 0:00:30]} Qc7 {[%emt 0:00:30]} 19. Rg1 {[%emt 0:00:30]} Nhf6 {[%emt 0:00:30]} 20. a4 {[%emt 0:00:30]} Ne5 {[%emt 0:00:30]} 21. a5 {[%emt 0:00:30]} Qd7 {[%emt 0:00:30]} 22. Kf2 {[%emt 0:00:30]} O-O-O {[%emt 0:00:30]} 23. Bf4 {[%emt 0:00:30]} Ng6 {[%emt 0:00:30]} 24. Bg3 {[%emt 0:00:30]} Nh5 {[%emt 0:00:30]} 25. Qd2 {[%emt 0:00:30]} f5 {[%emt 0:00:30]} 26. f4 {[%emt 0:00:30]} Nxg3 {[%emt 0:00:30]} 27. Rxg3 {[%emt 0:00:30]} Kb8 {[%emt 0:00:30]} 28. h5 {[%emt 0:00:30]} Nf8 {[%emt 0:00:30]} 29. e5 {[%emt 0:00:30]} e6 {[%emt 0:00:30]} 30. Bf3 {[%emt 0:00:30]} Qe7 {[%emt 0:00:30]} 31. Qe3 {[%emt 0:00:30]} exd5 {[%emt 0:00:30]} 32. cxd5 {[%emt 0:00:30]} Nd7 {[%emt 0:00:30]} 33. e6 {[%emt 0:00:30]} Nf6 {[%emt 0:00:30]} 34. Rb1 {[%emt 0:00:30]} Ne4+ {[%emt 0:00:30]} 35. Bxe4 {[%emt 0:00:30]} fxe4 {[%emt 0:00:30]} 36. Nd2 {[%emt 0:00:30]} Qh4 {[%emt 0:00:30]} 37. Kg2 {[%emt 0:00:30]} 1/2-1/2

[Event "48th Indian U15-ch Girls 2023"]
[Site "Jalgaon"]
[Date "2023.12.29"]
[Round "5.1"]
[White "Bhat Sannidhi Ramakrishna"]
[Black "Aamuktha Guntaka"]
[Result "1-0"]
[WhiteElo "1637"]
[BlackElo "1532"]
[PlyCount "95"]
[EventDate "2023.12.30"]
[EventType "swiss"]
[EventCountry "IND"]
[TimeControl "5400+30"]

1. d4 {[%emt 0:00:03]} d5 {[%emt 0:00:44]} 2. Bf4 {[%emt 0:00:15]} Nf6 {[%emt 0:00:08]} 3. e3 {[%emt 0:00:12]} c5 {[%emt 0:00:07]} 4. Nd2 {[%emt 0:00:11]} Nc6 {[%emt 0:00:14]} 5. c3 {[%emt 0:00:11]} Bf5 {[%emt 0:03:22]} 6. Ngf3 {[%emt 0:00:25]} Qb6 {[%emt 0:00:20]} 7. Nh4 {[%emt 0:01:03]} Bd7 {[%emt 0:06:30]} 8. Qb3 {[%emt 0:01:09]} c4 {[%emt 0:02:14]} 9. Qc2 {[%emt 0:00:25]} h6 {[%emt 0:05:50]} 10. Nhf3 {[%emt 0:08:07]} Qd8 {[%emt 0:08:44]} 11. e4 {[%emt 0:07:02]} b5 {[%emt 0:04:47]} 12. e5 {[%emt 0:05:59]} Nh5 {[%emt 0:05:23]} 13. Be3 {[%emt 0:01:34]} g5 {[%emt 0:02:13]} 14. h3 {[%emt 0:15:46]} Ng7 {[%emt 0:03:22]} 15. g4 {[%emt 0:01:48]} h5 {[%emt 0:24:03]} 16. gxh5 {[%emt 0:11:15]} Bf5 {[%emt 0:00:46]} 17. Qd1 {[%emt 0:03:06]} f6 {[%emt 0:03:35]} 18. Be2 {[%emt 0:05:47]} Qc8 {[%emt 0:05:42]} 19. Nf1 {[%emt 0:10:03]} Rxh5 {[%emt 0:05:54]} 20. Ng1 {[%emt 0:08:36]} Rh8 {[%emt 0:02:39]} 21. Ng3 {[%emt 0:00:12]} Be6 {[%emt 0:04:06]} 22. Qc2 {[%emt 0:02:18]} Bf5 {[%emt 0:02:53]} 23. Nxf5 {[%emt 0:03:14]} Qxf5 {[%emt 0:00:06]} 24. O-O-O {[%emt 0:01:52]} Qxc2+ {[%emt 0:01:09]} 25. Kxc2 {[%emt 0:00:03]} Nf5 {[%emt 0:01:49]} 26. Bc1 {[%emt 0:01:10]} Bg7 {[%emt 0:03:46]} 27. Bf3 {[%emt 0:07:05]} e6 {[%emt 0:01:32]} 28. exf6 {[%emt 0:00:56]} Bxf6 {[%emt 0:00:09]} 29. Bg4 {[%emt 0:00:16]} Kf7 {[%emt 0:01:26]} 30. Nf3 {[%emt 0:00:10]} Rag8 {[%emt 0:00:14]} 31. Rhe1 {[%emt 0:01:01]} Bd8 {[%emt 0:01:26]} 32. Re2 {[%emt 0:02:03]} Rg6 {[%emt 0:00:23]} 33. Rde1 {[%emt 0:00:39]} a5 {[%emt 0:00:33]} 34. Bxf5 {[%emt 0:01:54]} exf5 {[%emt 0:00:07]} 35. Ne5+ {[%emt 0:00:05]} Nxe5 {[%emt 0:00:05]} 36. Rxe5 {[%emt 0:00:03]} Rxh3 {[%emt 0:00:49]} 37. Rxd5 {[%emt 0:00:31]} Be7 {[%emt 0:00:36]} 38. Rxf5+ {[%emt 0:00:08]} Rf6 {[%emt 0:00:15]} 39. Rxe7+ {[%emt 0:00:09]} Kxe7 {[%emt 0:00:41]} 40. Bxg5 {[%emt 0:00:05]} Rhh6 {[%emt 0:00:41]} 41. Rxf6 {[%emt 0:00:08]} Rxf6 {[%emt 0:00:06]} 42. d5 {[%emt 0:01:06]} Kf7 {[%emt 0:00:05]} 43. Bxf6 {[%emt 0:00:04]} Kxf6 {[%emt 0:00:06]} 44. f4 {[%emt 0:00:11]} b4 {[%emt 0:00:04]} 45. cxb4 {[%emt 0:00:13]} axb4 {[%emt 0:00:08]} 46. a3 {[%emt 0:00:04]} b3+ {[%emt 0:00:13]} 47. Kc3 {[%emt 0:00:03]} Kf5 {[%emt 0:00:06]} 48. Kxc4 {[%emt 0:00:03]} 1-0

[Event "48th Indian U15-ch Girls 2023"]
[Site "Jalgaon"]
[Date "2023.12.29"]
[Round "5.2"]
[White "Shubhi Gupta"]
[Black "Anupam M Sreekumar"]
[Result "1-0"]
[WhiteElo "1902"]
[BlackElo "1642"]
[PlyCount "121"]
[EventDate "2023.12.30"]
[EventType "swiss"]
[EventCountry "IND"]
[TimeControl "5400+30"]

1. d4 {[%emt 0:01:53]} d5 {[%emt 0:00:36]} 2. c4 {[%emt 0:00:51]} c6 {[%emt 0:00:55]} 3. Nc3 {[%emt 0:01:48]} Nf6 {[%emt 0:01:05]} 4. Nf3 {[%emt 0:00:42]} dxc4 {[%emt 0:00:53]} 5. a4 {[%emt 0:01:24]} Bf5 {[%emt 0:01:17]} 6. Ne5 Nbd7 {[%emt 0:04:28]} 7. Nxc4 {[%emt 0:06:50]} Nb6 {[%emt 0:01:23]} 8. Ne5 {[%emt 0:04:06]} a5 {[%emt 0:03:13]} 9. g3 {[%emt 0:02:54]} Nfd7 {[%emt 0:03:05]} 10. Nf3 {[%emt 0:05:03]} e6 {[%emt 0:02:12]} 11. Bg2 {[%emt 0:03:18]} Bb4 {[%emt 0:06:24]} 12. O-O {[%emt 0:03:56]} O-O {[%emt 0:02:05]} 13. e4 {[%emt 0:10:06]} Bg6 {[%emt 0:09:20]} 14. Qe2 {[%emt 0:02:18]} Re8 {[%emt 0:04:47]} 15. Rd1 {[%emt 0:03:15]} Qc7 {[%emt 0:08:29]} 16. Bf4 {[%emt 0:04:39]} Bd6 {[%emt 0:02:52]} 17. Be3 {[%emt 0:02:24]} Bh5 {[%emt 0:08:27]} 18. Rac1 {[%emt 0:02:01]} Qb8 {[%emt 0:01:48]} 19. Qd3 {[%emt 0:02:10]} f5 {[%emt 0:05:58]} 20. e5 {[%emt 0:04:36]} Bb4 {[%emt 0:02:23]} 21. Qc2 {[%emt 0:04:02]} h6 {[%emt 0:02:08]} 22. Ne2 {[%emt 0:04:27]} g5 {[%emt 0:05:35]} 23. h4 {[%emt 0:02:48]} g4 {[%emt 0:15:20]} 24. Ne1 {[%emt 0:00:20]} Kh7 {[%emt 0:01:11]} 25. Nd3 {[%emt 0:01:16]} Bf8 {[%emt 0:01:38]} 26. Nef4 {[%emt 0:01:03]} Bf7 {[%emt 0:00:21]} 27. f3 {[%emt 0:00:46]} gxf3 {[%emt 0:01:12]} 28. Bxf3 {[%emt 0:00:08]} Qd8 {[%emt 0:00:25]} 29. Qf2 {[%emt 0:04:02]} Be7 {[%emt 0:01:06]} 30. Bh5 {[%emt 0:02:19]} Bxh5 {[%emt 0:04:19]} 31. Nxh5 {[%emt 0:00:29]} Nd5 {[%emt 0:00:06]} 32. Ndf4 {[%emt 0:00:57]} Nxe3 {[%emt 0:00:14]} 33. Nxe6 {[%emt 0:01:07]} Qb6 {[%emt 0:00:18]} 34. Qxe3 {[%emt 0:00:05]} Bb4 {[%emt 0:00:15]} 35. Qf4 {[%emt 0:00:36]} Kg6 {[%emt 0:01:30]} 36. Nhg7 {[%emt 0:00:12]} Rxe6 {[%emt 0:00:33]} 37. Nxe6 {[%emt 0:00:08]} Re8 {[%emt 0:00:34]} 38. Rf1 {[%emt 0:00:29]} Rxe6 {[%emt 0:00:25]} 39. Qxf5+ {[%emt 0:00:05]} Kg7 {[%emt 0:00:05]} 40. Qf7+ {[%emt 0:00:36]} Kh8 {[%emt 0:00:06]} 41. Qxe6 {[%emt 0:00:26]} Qxd4+ {[%emt 0:00:02]} 42. Kh2 {[%emt 0:00:32]} Nxe5 {[%emt 0:01:26]} 43. Qxh6+ {[%emt 0:02:14]} Kg8 {[%emt 0:00:01]} 44. Qg5+ {[%emt 0:00:08]} Kh8 {[%emt 0:00:34]} 45. Qh5+ {[%emt 0:00:22]} Kg7 {[%emt 0:00:16]} 46. Qe2 {[%emt 0:00:11]} Bd6 {[%emt 0:00:43]} 47. Rf4 {[%emt 0:00:49]} Qd5 {[%emt 0:00:53]} 48. Rd1 {[%emt 0:00:51]} Qe6 {[%emt 0:00:51]} 49. Re4 {[%emt 0:00:12]} Bc7 {[%emt 0:00:33]} 50. Re1 {[%emt 0:00:37]} Kf6 {[%emt 0:00:27]} 51. Qh5 {[%emt 0:01:00]} Qd5 {[%emt 0:00:33]} 52. Qg5+ {[%emt 0:00:32]} Ke6 {[%emt 0:00:05]} 53. Qg8+ {[%emt 0:00:10]} Kd6 {[%emt 0:00:28]} 54. Qxd5+ {[%emt 0:00:13]} Kxd5 {[%emt 0:00:05]} 55. Rxe5+ {[%emt 0:00:10]} Bxe5 {[%emt 0:00:04]} 56. b3 {[%emt 0:00:06]} b5 {[%emt 0:00:10]} 57. h5 {[%emt 0:00:30]} bxa4 {[%emt 0:00:22]} 58. bxa4 {[%emt 0:00:06]} c5 {[%emt 0:00:02]} 59. h6 {[%emt 0:00:05]} Bf6 {[%emt 0:01:20]} 60. h7 {[%emt 0:00:18]} c4 {[%emt 0:00:08]} 61. Re8 {[%emt 0:00:04]} 1-0

[Event "48th Indian U15-ch Girls 2023"]
[Site "Jalgaon"]
[Date "2023.12.29"]
[Round "5.3"]
[White "Kumari Prasad Jagriti"]
[Black "Saparya Ghosh"]
[Result "0-1"]
[WhiteElo "1506"]
[BlackElo "1662"]
[PlyCount "72"]
[EventDate "2023.12.30"]
[EventType "swiss"]
[EventCountry "IND"]
[TimeControl "5400+30"]

1. e4 {[%emt 0:00:04]} c5 {[%emt 0:00:24]} 2. Nf3 {[%emt 0:00:09]} Nc6 {[%emt 0:00:06]} 3. d4 {[%emt 0:00:05]} cxd4 {[%emt 0:00:07]} 4. Nxd4 {[%emt 0:00:06]} Nf6 {[%emt 0:00:08]} 5. Nc3 {[%emt 0:00:05]} e5 {[%emt 0:00:08]} 6. Ndb5 {[%emt 0:00:07]} d6 {[%emt 0:00:06]} 7. Bg5 {[%emt 0:00:08]} a6 {[%emt 0:00:04]} 8. Bxf6 {[%emt 0:00:07]} gxf6 {[%emt 0:00:06]} 9. Na3 {[%emt 0:00:05]} b5 {[%emt 0:00:12]} 10. Nd5 {[%emt 0:00:08]} Bg7 {[%emt 0:00:05]} 11. Bd3 {[%emt 0:00:46]} Ne7 {[%emt 0:00:09]} 12. Nxe7 {[%emt 0:09:54]} Qxe7 {[%emt 0:00:05]} 13. c4 {[%emt 0:00:26]} f5 {[%emt 0:01:41]} 14. cxb5 {[%emt 0:06:46]} d5 {[%emt 0:00:27]} 15. exd5 {[%emt 0:01:59]} e4 {[%emt 0:02:08]} 16. O-O {[%emt 0:04:41]} O-O {[%emt 0:02:04]} 17. Qe2 {[%emt 0:20:00]} Qb4 {[%emt 0:02:33]} 18. Bc4 {[%emt 0:00:27]} Qxb2 {[%emt 0:02:27]} 19. Nc2 {[%emt 0:00:08]} axb5 {[%emt 0:03:57]} 20. Bb3 {[%emt 0:07:31]} b4 {[%emt 0:09:08]} 21. Rfd1 {[%emt 0:03:31]} Ba6 {[%emt 0:08:37]} 22. Qh5 {[%emt 0:00:42]} f4 {[%emt 0:07:56]} 23. Rab1 {[%emt 0:11:17]} Qc3 {[%emt 0:00:24]} 24. Rbc1 {[%emt 0:00:15]} Rac8 {[%emt 0:03:21]} 25. d6 {[%emt 0:04:16]} Rc5 {[%emt 0:16:37]} 26. Qh4 {[%emt 0:10:30]} Bf6 {[%emt 0:05:22]} 27. Qxf4 {[%emt 0:02:03]} Bg5 {[%emt 0:01:05]} 28. Qg4 {[%emt 0:00:31]} h5 {[%emt 0:01:01]} 29. Qxe4 {[%emt 0:06:44]} Bxc1 {[%emt 0:00:17]} 30. Rxc1 {[%emt 0:02:36]} Bd3 {[%emt 0:01:35]} 31. Qh4 {[%emt 0:03:22]} Qd2 {[%emt 0:01:39]} 32. Re1 {[%emt 0:04:04]} Bxc2 {[%emt 0:00:50]} 33. Bxf7+ {[%emt 0:00:42]} Rxf7 {[%emt 0:00:27]} 34. Re8+ {[%emt 0:00:28]} Kg7 {[%emt 0:00:34]} 35. g3 {[%emt 0:00:58]} Qxf2+ {[%emt 0:01:08]} 36. Kh1 {[%emt 0:00:07]} Qf1# {[%emt 0:00:06]} 0-1

[Event "48th Indian U15-ch Girls 2023"]
[Site "Jalgaon"]
[Date "2023.12.29"]
[Round "5.4"]
[White "Sherali Pattnaik"]
[Black "Mrittika Mallick"]
[Result "1/2-1/2"]
[WhiteElo "1575"]
[BlackElo "1970"]
[PlyCount "112"]
[EventDate "2023.12.30"]
[EventType "swiss"]
[EventCountry "IND"]
[TimeControl "5400+30"]

1. e4 {[%emt 0:01:26]} c5 {[%emt 0:00:09]} 2. Nf3 {[%emt 0:00:05]} d6 {[%emt 0:00:07]} 3. d4 {[%emt 0:00:07]} cxd4 {[%emt 0:00:04]} 4. Nxd4 {[%emt 0:00:05]} Nf6 {[%emt 0:00:07]} 5. Nc3 {[%emt 0:00:10]} a6 {[%emt 0:00:04]} 6. f3 {[%emt 0:00:10]} e6 {[%emt 0:00:36]} 7. Be3 {[%emt 0:01:06]} b5 {[%emt 0:00:27]} 8. Qd2 {[%emt 0:06:19]} h5 {[%emt 0:06:25]} 9. a4 {[%emt 0:07:38]} bxa4 {[%emt 0:09:01]} 10. Rxa4 {[%emt 0:06:24]} Nbd7 {[%emt 0:08:28]} 11. Nb3 {[%emt 0:06:41]} Qc7 {[%emt 0:08:43]} 12. Be2 {[%emt 0:06:29]} Nb6 {[%emt 0:10:23]} 13. Rb4 {[%emt 0:15:15]} Nfd7 {[%emt 0:04:18]} 14. Na4 {[%emt 0:01:42]} Nxa4 {[%emt 0:03:56]} 15. Rxa4 {[%emt 0:00:02]} Rb8 {[%emt 0:12:00]} 16. Ra2 {[%emt 0:03:47]} d5 {[%emt 0:12:33]} 17. exd5 {[%emt 0:08:06]} Bb4 {[%emt 0:03:39]} 18. c3 {[%emt 0:00:21]} Bd6 {[%emt 0:00:07]} 19. dxe6 {[%emt 0:02:46]} Rxb3 {[%emt 0:01:36]} 20. exd7+ {[%emt 0:00:16]} Bxd7 {[%emt 0:00:29]} 21. Rxa6 {[%emt 0:03:07]} Bxh2 {[%emt 0:01:54]} 22. Ra7 {[%emt 0:09:00]} Bg3+ {[%emt 0:00:41]} 23. Kf1 {[%emt 0:00:12]} Rb7 {[%emt 0:00:41]} 24. Ra8+ {[%emt 0:00:34]} Rb8 {[%emt 0:00:18]} 25. Ra7 {[%emt 0:00:01]} Rb7 {[%emt 0:01:54]} 26. Rxb7 {[%emt 0:03:04]} Qxb7 {[%emt 0:00:02]} 27. Bd4 {[%emt 0:00:00]} h4 {[%emt 0:04:50]} 28. Bd3 {[%emt 0:07:45]} Rh5 {[%emt 0:03:54]} 29. Qe2+ {[%emt 0:04:11]} Be6 {[%emt 0:00:40]} 30. b4 {[%emt 0:03:20]} Qa8 {[%emt 0:00:43]} 31. c4 {[%emt 0:03:12]} Qa3 {[%emt 0:00:21]} 32. Qd2 {[%emt 0:00:51]} Qb3 {[%emt 0:03:23]} 33. Ke2 {[%emt 0:01:16]} Bxc4 {[%emt 0:02:05]} 34. Qe3+ {[%emt 0:00:01]} Be6 {[%emt 0:01:39]} 35. Rb1 {[%emt 0:00:31]} Qa2+ {[%emt 0:00:22]} 36. Rb2 {[%emt 0:00:01]} Qa1 {[%emt 0:00:34]} 37. Rb1 {[%emt 0:00:08]} Qa2+ {[%emt 0:00:01]} 38. Rb2 {[%emt 0:00:01]} Qd5 {[%emt 0:00:57]} 39. Be4 {[%emt 0:00:46]} Qb5+ {[%emt 0:00:05]} 40. Bd3 {[%emt 0:00:01]} Qb8 {[%emt 0:00:24]} 41. b5 {[%emt 0:01:00]} h3 {[%emt 0:00:19]} 42. Bg6 {[%emt 0:02:06]} Re5 {[%emt 0:00:35]} 43. Bxe5 {[%emt 0:00:21]} Bxe5 {[%emt 0:00:01]} 44. f4 {[%emt 0:00:43]} h2 {[%emt 0:01:37]} 45. Rb1 {[%emt 0:00:15]} Qa8 {[%emt 0:00:09]} 46. Be4 {[%emt 0:01:11]} Qa2+ {[%emt 0:00:01]} 47. Kf3 {[%emt 0:00:01]} Qxb1 {[%emt 0:00:11]} 48. Bxb1 {[%emt 0:00:40]} h1=Q {[%emt 0:00:02]} 49. Qxe5 {[%emt 0:00:01]} Qxb1 {[%emt 0:00:29]} 50. Qb8+ {[%emt 0:00:00]} Kd7 {[%emt 0:01:13]} 51. Qb7+ {[%emt 0:00:01]} Kd6 {[%emt 0:00:17]} 52. Qc6+ {[%emt 0:00:05]} Ke7 {[%emt 0:00:04]} 53. Qc7+ {[%emt 0:00:01]} Kf6 {[%emt 0:01:43]} 54. Qe5+ {[%emt 0:00:01]} Kg6 {[%emt 0:00:51]} 55. Qg5+ {[%emt 0:00:01]} Kh7 {[%emt 0:00:01]} 56. Qh4+ {[%emt 0:00:01]} Kg6 {[%emt 0:00:17]} 1/2-1/2